bitfinex-derivatives/quotes_ETHF0:USTF0_20260120
["timestamp","ask_amount","ask_price","bid_price","bid_amount"]
[1768952716414,3.42107878,2944.8,2943.7,0.00266644]
[1768952716617,0.17001,2944.4,2943.2,2.147]
[1768952716810,0.17001,2944.4,2943.0,5.89987093]
[1768952717412,0.17002,2944.1,2942.8,5.89987093]
[1768952717616,0.17002,2944.1,2942.9,2.148]
[1768952721315,0.17002,2944.1,2942.9,5.90087093]
[1768952721716,0.17002,2944.1,2942.9,3.75287093]
[1768952721913,0.17002,2944.1,2943.0,2.15]
[1768952722111,0.17002,2944.1,2943.1,3.75287093]
[1768952722312,6.61898,2944.8,2943.1,3.75287093]
[1768952722608,0.16998,2944.8,2943.1,3.75287093]
[1768952724316,0.16998,2944.8,2943.3,3.75287093]
[1768952724615,0.16996,2945.2,2943.4,2.151]
[1768952724825,0.16996,2945.2,2943.5,3.75287093]
[1768952726110,0.16997,2945.1,2943.5,3.75287093]
[1768952726314,0.16997,2945.0,2943.6,9.30487093]
[1768952727017,0.16997,2945.0,2943.6,3.75287093]
[1768952727319,0.16997,2945.0,2943.7,2.154]
[1768952728016,0.00340759,2945.5,2943.8,3.75287093]
[1768952730527,3.42448637,2945.5,2943.8,3.399]
[1768952730725,3.42448637,2945.5,2943.4,3.75287093]
[1768952730924,3.59442637,2945.5,2943.5,5.553]
[1768952731129,2.07851444,2945.2,2943.5,3.75287093]
[1768952731327,5.49959322,2945.2,2943.6,2.154]
[1768952731728,3.42107878,2945.1,2943.6,2.154]
[1768952732130,3.59104878,2945.1,2943.1,3.75287093]
[1768952732331,3.59104878,2945.1,2943.2,5.553]
[1768952732729,3.59104878,2945.1,2943.2,9.30587093]
[1768952733028,3.59104878,2945.1,2943.3,3.75287093]
[1768952735022,0.16998,2945.0,2943.3,3.75287093]
[1768952735431,3.59105878,2944.9,2943.3,3.75287093]
[1768952736439,3.19705878,2944.9,2943.3,3.75287093]
[1768952736642,0.16998,2944.8,2943.3,3.75287093]
[1768952736940,3.19705878,2944.9,2943.3,3.75287093]
[1768952736941,0.16999,2944.7,2943.3,3.75287093]
[1768952737134,0.16999,2944.6,2943.3,3.75287093]
[1768952738542,0.16996,2945.1,2943.3,3.75287093]
[1768952739136,3.42448637,2945.5,2943.3,3.75287093]
[1768952739338,0.16998,2944.8,2943.4,5.553]
[1768952739539,0.16998,2944.8,2943.4,9.30587093]
[1768952739939,0.16998,2944.8,2943.5,3.75287093]
[1768952744047,0.16998,2944.8,2943.6,5.90487093]
[1768952744247,0.16998,2944.8,2943.7,3.75287093]
[1768952745044,0.16995,2945.4,2943.7,3.75287093]
[1768952745246,1.16452924,2945.3,2943.7,3.75287093]
[1768952745445,0.00340759,2945.5,2943.7,3.75287093]
[1768952745446,1.16453924,2945.2,2943.8,2.152]
[1768952745650,0.16996,2945.2,2943.8,2.152]
[1768952746354,1.16447535,2945.1,2943.8,2.152]
[1768952746550,0.16997,2945.1,2943.8,2.152]
[1768952747651,0.16997,2945.1,2943.7,3.75287093]
[1768952747950,0.16998,2944.9,2943.3,3.47886359]
[1768952748144,0.16998,2944.9,2943.4,2.152]
[1768952748846,0.16998,2944.9,2943.5,3.47886359]
[1768952753259,0.16995,2945.4,2943.5,3.47886359]
[1768952753446,0.16995,2945.3,2943.5,3.47886359]
[1768952753650,5.56285875,2945.4,2943.5,3.47886359]
[1768952753851,0.16998,2944.8,2943.6,2.152]
[1768952754258,0.16998,2944.8,2943.6,5.63086359]
[1768952754461,0.16999,2944.7,2943.7,2.152]
[1768952758559,0.16999,2944.7,2943.6,2.152]
[1768952759160,0.16999,2944.7,2943.5,3.47886359]
[1768952759357,0.16999,2944.7,2943.5,5.63086359]
[1768952760056,0.16999,2944.7,2943.6,3.47886359]
[1768952761061,0.16999,2944.7,2943.7,2.152]
[1768952762259,0.16999,2944.7,2943.6,3.47886359]
[1768952762466,0.16999,2944.7,2943.6,5.63086359]
[1768952764568,0.16999,2944.7,2943.7,3.47886359]
[1768952766764,0.16999,2944.7,2943.7,5.63086359]
[1768952767961,0.16999,2944.6,2943.7,3.47886359]
[1768952769765,0.17,2944.5,2943.6,2.152]
[1768952773176,0.17,2944.5,2943.7,3.47886359]
[1768952773473,0.16997,2945.1,2943.7,3.47886359]
[1768952775775,0.00340759,2945.5,2943.9,3.61012224]
[1768952775974,0.16993,2945.7,2944.1,4.26805195]
[1768952776173,0.16993,2945.7,2944.2,3.61012224]
[1768952776376,0.16993,2945.7,2944.4,3.61012224]
[1768952776974,0.1741119,2945.7,2944.4,3.61012224]
[1768952777377,6.00919691,2945.8,2944.4,3.61012224]
[1768952777579,0.16993,2945.7,2944.4,3.61012224]
[1768952778378,0.17295471,2945.7,2944.4,3.61012224]
[1768952778880,0.00302471,2945.7,2944.4,3.61012224]
[1768952780179,0.00302471,2945.7,2944.6,3.61012224]
[1768952781476,0.00302471,2945.7,2944.7,5.76312224]
[1768952782977,0.00302471,2945.7,2944.1,3.61012224]
[1768952783179,0.00302471,2945.7,2944.2,5.76412224]
[1768952783377,0.00302471,2945.7,2944.3,3.61012224]
[1768952784390,0.00302471,2945.7,2944.5,3.61012224]
[1768952784578,0.00302471,2945.7,2944.6,2.155]
[1768952784784,0.00302471,2945.7,2944.4,2.155]
[1768952786986,0.17295471,2945.7,2944.4,2.155]
[1768952787281,0.16994,2945.6,2944.3,2.155]
[1768952787481,0.16994,2945.6,2944.1,3.61012224]
[1768952787678,0.16994,2945.6,2944.2,2.155]
[1768952787883,0.16994,2945.6,2944.2,5.76512224]
[1768952788780,0.16994,2945.6,2944.2,3.61012224]
[1768952788981,0.16994,2945.6,2941.0,14.49578507]
[1768952788982,0.16997,2945.0,2943.8,3.61012224]
[1768952789187,3.63861703,2945.0,2943.2,3.61012224]
[1768952790387,0.17001,2944.4,2943.2,3.61012224]
[1768952793185,3.63861703,2945.0,2943.2,3.61012224]
[1768952793385,3.63861703,2944.8,2942.8,5.7673984]
[1768952793588,0.17002,2944.1,2942.8,5.7673984]
[1768952793887,0.17003,2944.0,2942.8,5.7673984]
[1768952794290,0.17003,2943.9,2942.8,5.7673984]
[1768952794887,0.17006,2943.5,2942.8,0.00327616]
[1768952795092,0.17006,2943.4,2942.4,3.61012224]
[1768952795988,0.17354893,2943.4,2942.4,3.61365644]
[1768952797293,0.17007,2943.2,2942.4,3.61365644]
[1768952798396,0.17007,2943.2,2942.4,0.0035342]
[1768952799695,0.17007,2943.2,2942.4,3.61365644]
[1768952800584,0.00348893,2943.4,2942.4,3.61365644]
[1768952804497,0.17354893,2943.4,2942.4,3.61365644]
[1768952808097,0.17354893,2943.4,2942.4,0.0035342]
[1768952808899,0.17354893,2943.4,2942.4,3.51839655]
[1768952823217,0.99876486,2943.3,2942.0,3.51486235]
[1768952823509,0.1701,2942.8,2941.6,3.51486235]
[1768952823705,0.99876486,2942.7,2941.6,3.51486235]
[1768952823907,0.17012,2942.4,2941.2,3.51486235]
[1768952824110,0.99876486,2942.3,2941.2,3.51486235]
[1768952824312,1.16889486,2942.3,2941.2,3.51765451]
[1768952824508,0.99876486,2942.2,2941.2,3.51765451]
[1768952825211,0.17013,2942.3,2941.2,3.51765451]
[1768952826105,0.17013,2942.3,2941.2,0.00279216]
[1768952826410,4.52893825,2942.2,2940.5,3.51486235]
[1768952826603,1.34920911,2942.1,2940.5,3.51486235]
[1768952826804,1.34920911,2942.0,2940.5,3.51486235]
[1768952827000,0.99714115,2941.9,2940.5,3.51486235]
[1768952827216,0.99714115,2941.8,2940.5,3.51486235]
[1768952827406,0.17017,2941.5,2940.5,0.00421175]
[1768952828111,0.17018,2941.4,2940.5,0.00421175]
[1768952828704,0.17019,2941.3,2940.5,0.00421175]
[1768952828911,0.17019,2941.2,2940.5,0.00421175]
[1768952829401,0.1702,2941.0,2939.7,3.51486235]
[1768952830309,0.17021,2940.8,2940.0,0.50285197]
[1768952830808,3.53488677,2941.3,2939.7,3.51486235]
[1768952831008,2.08635264,2940.8,2938.9,3.51486235]
[1768952831205,0.17023,2940.6,2938.9,3.51486235]
[1768952831807,0.17019,2941.2,2938.9,3.5191922]
[1768952832006,0.17019,2941.2,2939.1,3.51486235]
[1768952832214,0.17019,2941.2,2939.3,3.51486235]
[1768952832809,0.17015,2941.9,2939.8,3.51486235]
[1768952833013,0.17015,2941.9,2940.0,3.51486235]
[1768952834013,0.17343719,2941.9,2940.0,3.51486235]
[1768952834916,0.17016,2941.7,2940.0,3.51486235]
[1768952836925,0.17017,2941.6,2940.0,3.51486235]
[1768952837613,0.17017,2941.5,2940.0,3.51486235]
[1768952838119,0.17018,2941.4,2940.0,3.51486235]
[1768952838412,2.25657264,2940.7,2939.5,3.60968678]
[1768952838615,0.17022,2940.7,2939.5,3.60968678]
[1768952839417,0.17022,2940.6,2939.5,3.60968678]
[1768952842818,0.17022,2940.6,2938.9,0.00432985]
[1768952842819,0.17023,2940.5,2939.0,3.60968678]
[1768952845224,0.17024,2940.4,2939.0,3.60968678]
[1768952845425,0.17024,2940.3,2939.0,3.60968678]
[1768952847621,2.08635264,2941.2,2939.0,3.60968678]
[1768952847826,0.17021,2940.9,2939.0,3.60968678]
[1768952848721,0.17021,2940.9,2939.2,3.60968678]
[1768952848922,0.17021,2940.9,2939.2,3.77998678]
[1768952849126,6.00919691,2941.3,2939.6,3.60968678]
[1768952849326,0.17019,2941.3,2939.7,3.60968678]
[1768952849530,2.08635264,2941.7,2939.7,3.60968678]
[1768952849531,0.17019,2941.2,2939.7,3.60968678]
[1768952850124,2.08635264,2941.7,2939.7,3.60968678]
[1768952850320,0.17016,2941.8,2939.7,3.77995678]
[1768952850921,0.00328719,2941.9,2939.9,3.60968678]
[1768952851121,0.17012,2942.4,2940.5,3.60968678]
[1768952851318,0.17012,2942.4,2940.7,3.60968678]
[1768952851936,0.17012,2942.4,2940.9,3.60968678]
[1768952852126,0.17437545,2942.4,2940.9,3.60968678]
[1768952852722,0.17013,2942.2,2940.9,3.60968678]
[1768952854827,0.00425545,2942.4,2940.9,3.60968678]
[1768952861235,2.09060809,2942.4,2940.9,3.60968678]
[1768952862230,0.00425545,2942.4,2940.9,3.60968678]
[1768952863734,0.00425545,2942.4,2941.1,3.60968678]
[1768952863935,0.00425545,2942.4,2941.1,3.61345605]
[1768952866236,0.00425545,2942.4,2941.1,5.76045605]
[1768952866429,0.00425545,2942.4,2941.2,3.47210764]
[1768952869341,2.08635264,2942.3,2941.2,3.47210764]
[1768952869539,2.25648264,2942.3,2941.2,3.47210764]
[1768952869842,0.17013,2942.2,2941.2,3.47210764]
[1768952870041,0.17014,2942.1,2941.1,0.00376927]
[1768952871143,0.17014,2942.1,2940.3,0.44]
[1768952871144,0.1702,2941.1,2939.9,3.47210764]
[1768952871938,2.25651264,2941.8,2939.9,3.47630858]
[1768952872537,0.17016,2941.8,2939.9,3.47630858]
[1768952875139,0.17018,2941.5,2939.9,6.87930858]
[1768952875340,5.58241565,2941.8,2940.0,3.47210764]
[1768952875743,2.25654264,2941.3,2940.0,3.47210764]
[1768952878649,2.08635264,2941.8,2940.0,3.47210764]
[1768952879145,0.17016,2941.7,2940.0,3.47210764]
[1768952881153,2.08635264,2941.3,2940.0,3.47210764]
[1768952881547,0.17017,2941.5,2940.0,3.47210764]
[1768952886552,0.17018,2941.4,2940.0,3.47210764]
[1768952888158,0.17015,2941.9,2940.0,3.47210764]
[1768952888553,8.09554955,2942.3,2940.0,3.47210764]
[1768952888861,0.17016,2941.7,2940.0,3.47210764]
[1768952889962,2.08635264,2941.8,2940.0,3.47210764]
[1768952890151,0.1702,2941.1,2940.0,3.47210764]
[1768952890460,0.17021,2940.9,2939.9,0.00420094]
[1768952890755,0.17023,2940.6,2939.1,3.404]
[1768952890950,0.17023,2940.5,2939.1,2.144]
[1768952891157,0.17023,2940.5,2938.9,2.144]
[1768952891559,0.17023,2940.5,2938.9,2.14841186]
[1768952891758,0.17024,2940.4,2938.9,2.14841186]
[1768952891960,3.49606301,2940.4,2938.9,0.00441186]
[1768952892259,3.49606301,2940.2,2938.9,0.00441186]
[1768952892460,3.49944315,2940.2,2938.9,0.00441186]
[1768952892655,3.66632301,2940.1,2938.9,0.00441186]
[1768952892860,3.49606301,2940.1,2938.6,0.855]
[1768952893057,3.49606301,2940.1,2937.9,3.64248764]
[1768952893058,3.49606301,2939.9,2937.9,3.47210764]
[1768952893254,3.49606301,2939.8,2937.9,5.49310764]
[1768952893560,0.17029,2939.5,2938.0,3.47210764]
[1768952893958,0.17029,2939.5,2938.0,3.47587735]
[1768952896059,3.49606301,2939.8,2938.0,3.47587735]
[1768952896649,3.66633301,2939.8,2938.0,3.47587735]
[1768952896855,3.66633301,2939.8,2938.1,2.144]
[1768952897366,3.66633301,2939.8,2938.1,5.74602252]
[1768952897861,3.66633301,2939.8,2938.2,3.60202252]
[1768952898564,3.77959189,2939.2,2938.0,0.00376971]
[1768952898763,0.17031,2939.2,2938.0,0.00376971]
[1768952898962,0.17031,2939.2,2938.0,3.60579223]
[1768952899468,0.17027,2939.8,2938.0,3.60579223]
[1768952901353,0.17029,2939.6,2938.1,2.144]
[1768952901564,3.60928189,2939.7,2938.1,2.144]
[1768952901565,0.17029,2939.4,2938.1,2.144]
[1768952901869,0.17029,2939.4,2938.0,3.60579223]
[1768952901870,0.17032,2939.0,2938.0,0.00376971]
[1768952903462,3.77960189,2939.0,2938.0,0.00376971]
[1768952904163,3.77960189,2938.9,2938.0,0.00376971]
[1768952904471,2.08781287,2939.5,2937.2,2.144]
[1768952904472,3.77961189,2938.8,2937.2,2.144]
[1768952904768,3.60928189,2938.8,2936.6,7.03739726]
[1768952904962,2.08781287,2938.9,2936.6,3.60202252]
[1768952904963,3.77964189,2938.3,2936.6,3.60202252]
[1768952905155,3.60928189,2939.6,2936.6,3.60202252]
[1768952905361,0.17028,2939.6,2937.7,3.60202252]
[1768952905661,0.17028,2939.6,2938.6,0.02988438]
[1768952905861,0.17028,2939.6,2939.1,0.04655711]
[1768952906168,3.77956189,2939.6,2938.1,3.60202252]
[1768952907060,3.77956189,2939.6,2938.1,3.60498388]
[1768952907462,3.77957189,2939.5,2938.1,0.00296136]
[1768952907862,0.17029,2939.4,2938.1,0.00296136]
[1768952908063,3.60928189,2939.4,2938.1,0.00296136]
[1768952908369,0.1703,2939.3,2938.1,0.00296136]
[1768952908565,3.77958189,2939.3,2938.1,0.00296136]
[1768952909162,3.77959189,2939.2,2938.1,0.00296136]
[1768952909375,3.77959189,2939.1,2938.1,0.00296136]
[1768952910472,3.60928189,2938.9,2938.1,0.00296136]
[1768952911273,3.60928189,2939.5,2938.5,0.0424098]
[1768952911573,3.77957189,2939.5,2938.5,0.0424098]
[1768952911773,3.77957189,2939.5,2939.0,0.04655711]
[1768952912071,0.17029,2939.5,2939.0,0.04655711]
[1768952912764,0.17029,2939.5,2939.2,0.04655711]
[1768952912967,0.17029,2939.5,2938.1,0.00296136]
[1768952913780,0.17029,2939.4,2938.1,0.00296136]
[1768952913978,3.77957189,2939.4,2938.1,0.00296136]
[1768952914472,0.1703,2939.3,2938.1,0.00296136]
[1768952916473,0.1703,2939.3,2938.1,3.60498388]
[1768952917669,0.1703,2939.3,2938.7,0.04451477]
[1768952918067,0.1703,2939.3,2939.0,0.04656422]
[1768952919177,0.1703,2939.3,2939.1,0.04656422]
[1768952919377,3.60928189,2939.9,2939.1,0.04656422]
[1768952919671,0.17031,2939.2,2938.1,0.00296136]
[1768952920581,2.96503047,2940.2,2938.1,0.00296136]
[1768952920582,3.77959189,2939.1,2938.1,0.00296136]
[1768952921181,0.99965898,2939.0,2938.1,0.00296136]
[1768952921473,0.17031,2939.1,2938.1,0.00296136]
[1768952922670,0.17028,2939.8,2938.1,3.60498388]
[1768952922874,1.00081679,2939.7,2938.1,3.60498388]
[1768952923074,1.00081679,2939.6,2938.1,3.60498388]
[1768952923280,0.00338014,2940.2,2938.1,3.77535388]
[1768952923485,1.00075177,2940.1,2938.1,3.77535388]
[1768952923676,1.00075177,2940.0,2938.1,3.77535388]
[1768952923980,1.00075177,2939.9,2939.0,0.04482201]
[1768952924178,0.17363014,2940.2,2939.0,0.04482201]
[1768952924383,1.0003784,2940.1,2939.4,0.04655711]
[1768952924568,0.17363014,2940.2,2939.4,0.04655711]
[1768952924569,1.1706384,2940.0,2939.4,0.04655711]
[1768952924768,1.0003784,2939.9,2938.5,3.60202252]
[1768952924975,4.40240299,2939.8,2938.1,0.00296136]
[1768952925174,4.68694,2939.7,2938.1,0.00296136]
[1768952925379,1.0003784,2939.6,2938.1,0.00296136]
[1768952925580,1.0003784,2939.5,2938.1,0.00296136]
[1768952925879,3.6865616,2939.7,2938.1,0.00296136]
[1768952926084,4.68622996,2939.6,2938.1,0.00296136]
[1768952926283,0.99966836,2939.5,2938.1,0.00296136]
[1768952926582,1.16995836,2939.5,2938.1,0.00296136]
[1768952926783,0.99960016,2939.4,2938.1,0.00296136]
[1768952926992,0.17031,2939.1,2938.1,0.00296136]
[1768952927183,0.00338014,2940.2,2936.8,3.40939672]
[1768952927184,3.6865616,2938.6,2936.8,3.40939672]
[1768952927377,3.8569116,2938.4,2936.5,4.26805195]
[1768952927583,4.85632653,2938.3,2936.4,18.60939672]
[1768952927783,3.8569216,2938.3,2936.4,18.60939672]
[1768952928087,3.8569216,2938.3,2936.5,3.40939672]
[1768952928477,3.8569216,2938.3,2937.4,0.04300075]
[1768952928674,3.8569216,2938.3,2936.5,3.40939672]
[1768952928979,3.8569216,2938.3,2937.4,0.04300075]
[1768952929279,3.6865616,2938.1,2936.5,3.40939672]
[1768952929481,3.8569516,2937.8,2936.4,0.0032495]
[1768952931282,0.99712479,2937.7,2936.4,0.0032495]
[1768952931585,0.99708342,2937.6,2936.4,0.0032495]
[1768952931780,3.8569516,2937.8,2936.4,0.0032495]
[1768952931986,3.6865616,2937.6,2936.4,0.0032495]
[1768952933286,3.8569716,2937.5,2936.4,0.0032495]
[1768952933480,3.6865616,2937.3,2935.6,3.40939672]
[1768952934584,0.17042,2937.2,2935.6,3.41204985]
[1768952934987,3.8569816,2937.2,2935.6,3.41204985]
[1768952936779,0.17042,2937.2,2935.6,3.41204985]
[1768952937976,3.8569516,2937.8,2935.6,3.41204985]
[1768952938185,4.67976592,2937.7,2935.6,3.41204985]
[1768952938385,0.17039,2937.8,2935.6,3.41204985]
[1768952939687,0.17039,2937.8,2935.8,3.40939672]
[1768952940087,0.17039,2937.7,2935.8,3.40939672]
[1768952940887,3.6865616,2937.4,2935.6,0.00265313]
[1768952941087,3.6865616,2937.3,2935.6,0.00265313]
[1768952941587,0.17043,2937.0,2935.6,0.00265313]
[1768952941992,0.17044,2936.9,2935.6,0.00265313]
[1768952942880,3.6865616,2936.9,2935.6,0.00265313]
[1768952943085,0.17046,2936.6,2935.6,0.00265313]
[1768952943688,0.17048,2936.3,2935.6,0.00265313]
[1768952943891,0.17048,2936.3,2934.8,3.40939672]
[1768952944090,0.17048,2936.3,2934.4,3.40939672]
[1768952944297,0.17048,2936.3,2934.6,3.40939672]
[1768952944987,0.17048,2936.3,2934.6,3.4137159]
[1768952948694,0.17044,2937.0,2934.6,3.5842859]
[1768952948903,3.6865616,2937.1,2934.6,3.5842859]
[1768952949198,3.8570216,2936.5,2934.7,2.058]
[1768952949790,3.8570216,2936.5,2934.8,3.40939672]
[1768952950597,0.17046,2936.5,2934.8,3.40939672]
[1768952951498,0.17047,2936.4,2934.8,3.40939672]
[1768952952001,0.17047,2936.3,2934.8,3.40939672]
[1768952955397,3.6865616,2936.7,2934.8,3.40939672]
[1768952956297,0.17046,2936.6,2934.8,3.40939672]
[1768952956498,0.17046,2936.5,2934.8,3.40939672]
[1768952956797,0.17047,2936.4,2934.8,3.40939672]
[1768952957802,0.17048,2936.2,2934.7,2.147]
[1768952958503,3.68944933,2935.9,2934.6,0.00431918]
[1768952958804,3.51894933,2935.7,2934.6,0.00431918]
[1768952959003,3.68946933,2935.6,2934.6,0.00431918]
[1768952961597,0.17052,2935.6,2934.6,0.00431918]
[1768952964095,0.00272637,2935.9,2934.6,3.65416544]
[1768952964301,2.41383046,2936.9,2934.6,3.65416544]
[1768952964302,0.17043,2937.0,2934.8,3.82040626]
[1768952964504,0.99686526,2936.9,2934.8,3.82040626]
[1768952964701,3.68939933,2936.7,2935.0,3.64984626]
[1768952964895,3.68939933,2936.7,2934.9,15.2]
[1768952964896,3.68940933,2936.5,2934.6,3.65416544]
[1768952965308,3.692967,2936.5,2934.6,3.65416544]
[1768952965603,3.692967,2936.5,2934.7,3.64984626]
[1768952966108,3.68941933,2936.4,2934.7,3.64984626]
[1768952966302,0.17047,2936.3,2934.7,3.64984626]
[1768952966504,0.17048,2936.2,2934.7,3.64984626]
[1768952970406,0.17048,2936.2,2934.6,2.15131918]
[1768952970407,3.68942933,2936.2,2934.6,2.15131918]
[1768952970906,3.51894933,2936.2,2934.6,2.15131918]
[1768952971105,3.68943933,2936.0,2934.6,2.15131918]
[1768952971608,0.17049,2936.0,2934.6,5.80116544]
[1768952971807,0.17049,2936.0,2934.7,3.64984626]
[1768952972908,3.522507,2936.5,2934.7,3.64984626]
[1768952973113,3.51894933,2936.3,2934.7,3.64984626]
[1768952973313,0.99857694,2936.2,2934.7,3.64984626]
[1768952973706,0.17049,2936.1,2934.6,3.65416544]
[1768952973912,0.99857694,2936.0,2934.6,3.65416544]
[1768952974213,0.00355767,2936.5,2934.6,3.82473544]
[1768952974413,0.99838999,2936.4,2934.6,3.82473544]
[1768952974614,0.17047,2936.4,2934.6,3.82473544]
[1768952975614,0.17047,2936.4,2934.7,9.20684626]
[1768952975803,0.17047,2936.4,2934.8,3.64984626]
[1768952977007,0.00355767,2936.5,2934.8,3.64984626]
[1768952977211,0.00355767,2936.5,2934.7,5.557]
[1768952977212,0.00355767,2936.5,2935.2,3.64984626]
[1768952979910,0.00355767,2936.5,2935.2,3.82038626]
[1768952980513,0.00355767,2936.5,2935.4,3.64984626]
[1768952980920,0.00355767,2936.5,2935.5,2.146]
[1768952981109,0.00355767,2936.5,2935.5,5.79584626]
[1768952981313,3.51894933,2937.2,2935.6,3.64984626]
[1768952982419,0.0027389,2937.2,2935.6,3.64984626]
[1768952982615,0.0027389,2937.2,2935.7,0.1705]
[1768952982812,0.0027389,2937.2,2935.8,3.64984626]
[1768952983013,0.0027389,2937.2,2935.9,3.64984626]
[1768952984122,0.0027389,2937.2,2936.0,2.148]
[1768952986316,0.0027389,2937.2,2936.0,5.65477339]
[1768952986524,0.0027389,2937.2,2936.1,3.50677339]
[1768952987234,0.17037,2938.0,2936.1,3.67725339]
[1768952987830,0.17038,2937.9,2936.1,3.67725339]
[1768952988226,0.17389962,2937.9,2936.1,3.67725339]
[1768952988431,3.75218268,2937.9,2936.1,3.67725339]
[1768952991335,3.74867306,2937.8,2936.1,3.67725339]
[1768952991536,3.74867306,2937.7,2936.2,2.147]
[1768952992832,3.74867306,2937.7,2936.2,5.65377339]
[1768952993036,0.17039,2937.7,2936.2,5.65377339]
[1768952994033,0.00351962,2937.9,2936.3,3.50677339]
[1768952994240,3.75218268,2937.9,2936.4,2.146]
[1768952994427,3.75218268,2937.9,2936.2,0.17047]
[1768952994833,3.57828306,2937.7,2936.1,2.146]
[1768952995238,3.57828306,2937.7,2935.9,3.50677339]
[1768952995438,3.57828306,2937.4,2935.6,0.17051]
[1768952995642,3.57828306,2937.4,2935.6,2.31651]
[1768952996238,3.57828306,2937.4,2935.6,0.17051]
[1768952996440,3.74869306,2937.4,2935.6,0.17051]
[1768952997033,3.74869306,2937.4,2935.0,4.26805195]
[1768952997034,3.57828306,2937.4,2935.1,3.50677339]
[1768952997234,3.57828306,2937.4,2935.2,2.146]
[1768952998532,3.57828306,2937.0,2935.2,2.146]
[1768953000730,3.74871306,2937.0,2935.2,2.146]
[1768953001135,3.74871306,2937.0,2935.3,3.50677339]
[1768953006047,3.57828306,2937.4,2935.5,3.50677339]
[1768953006347,3.74869306,2937.4,2935.5,3.50677339]
[1768953007236,4.57691282,2937.3,2935.5,3.50677339]
[1768953007443,0.17041,2937.4,2935.5,3.67729339]
[1768953007642,3.57828306,2937.6,2935.9,3.50677339]
[1768953007843,3.57828306,2937.6,2936.0,2.154]
[1768953008150,3.74868306,2937.6,2936.0,2.154]
[1768953009147,3.74868306,2937.6,2936.1,2.154]
[1768953010044,3.74868306,2937.6,2936.1,5.66077339]
[1768953012346,3.74868306,2937.6,2936.2,2.153]
[1768953012750,0.00351962,2937.9,2936.3,3.50677339]
[1768953012949,3.57828306,2937.7,2936.2,2.153]
[1768953015855,0.00351962,2937.9,2936.5,3.65193426]
[1768953016260,0.00351962,2937.9,2936.5,3.82239426]
[1768953016653,3.63140042,2937.9,2936.2,4.26805195]
[1768953016848,3.63140042,2937.9,2936.3,2.152]
[1768953018153,3.6278808,2937.7,2936.0,4.43854195]
[1768953018359,3.7982808,2937.7,2936.1,2.152]
[1768953019459,4.62959744,2937.6,2936.1,2.152]
[1768953019654,3.6278808,2937.6,2936.1,2.152]
[1768953020955,0.00351962,2937.9,2936.2,3.65193426]
[1768953021154,0.00351962,2937.9,2936.2,3.82241426]
[1768953021750,0.00351962,2937.9,2936.3,3.65193426]
[1768953024469,3.6278808,2938.8,2936.9,3.65193426]
[1768953024660,3.6278808,2938.6,2937.0,2.157]
[1768953025361,3.63168339,2938.6,2937.0,2.16007081]
[1768953026060,3.63168339,2938.6,2937.1,2.157]
[1768953026368,3.6278808,2938.3,2937.0,0.00307081]
[1768953027266,0.00380259,2938.6,2937.0,3.65500507]
[1768953029364,3.63168339,2938.6,2937.0,3.65500507]
[1768953031363,0.00380259,2938.6,2937.0,3.82543507]
[1768953033171,3.63168339,2938.6,2937.1,5.563]
[1768953034566,3.63168339,2938.6,2937.0,3.82543507]
[1768953034873,3.63168339,2938.6,2937.1,2.155]
[1768953035473,3.63168339,2938.6,2937.1,5.80693426]
[1768953036973,3.63168339,2938.6,2937.2,2.155]
[1768953037767,0.00380259,2938.6,2937.3,3.65193426]
[1768953038475,3.63168339,2938.6,2937.2,2.155]
[1768953038672,3.63168339,2938.6,2937.3,2.155]
[1768953039178,0.00380259,2938.6,2937.3,2.155]
[1768953039474,0.00380259,2938.6,2937.3,5.80693426]
[1768953039771,0.00380259,2938.6,2937.4,3.65193426]
[1768953040669,3.63168339,2938.6,2937.2,0.17042]
[1768953040869,3.63168339,2938.6,2937.3,2.154]
[1768953041578,0.00380259,2938.6,2937.3,5.80593426]
[1768953042080,0.00380259,2938.6,2937.4,3.65193426]
[1768953042475,0.00380259,2938.6,2937.6,0.1704]
[1768953043580,0.00380259,2938.6,2937.1,0.44]
[1768953043782,3.63168339,2938.6,2937.2,5.561]
[1768953045783,3.63168339,2938.6,2937.0,0.00307081]
[1768953045784,3.59417256,2938.4,2937.0,0.00307081]
[1768953053483,3.42382256,2938.4,2937.0,0.00307081]
[1768953055586,0.00380259,2938.6,2937.0,3.69950637]
[1768953056989,3.42762515,2938.6,2937.1,2.153]
[1768953060495,3.42762515,2938.6,2937.2,3.86685556]
[1768953060496,0.00380259,2938.6,2937.2,3.86685556]
[1768953060994,0.00380259,2938.6,2937.3,5.25870706]
[1768953061183,0.00380259,2938.6,2937.0,0.00307081]
[1768953061485,3.42382256,2938.0,2937.0,0.00307081]
[1768953061884,3.42382256,2938.0,2936.2,12.18957681]
[1768953061885,1.3918615,2937.7,2936.2,12.18957681]
[1768953062187,3.42382256,2937.6,2936.3,2.152]
[1768953062394,3.42382256,2937.6,2936.0,4.26805195]
[1768953062690,3.42382256,2937.6,2935.8,8.26364114]
[1768953062691,1.3918615,2936.9,2935.4,0.17052]
[1768953062890,3.42382256,2937.2,2935.5,2.153]
[1768953063093,3.42382256,2937.2,2935.6,2.154]
[1768953063094,3.59425256,2937.2,2935.6,2.154]
[1768953063291,3.42382256,2937.0,2935.4,0.00313318]
[1768953063589,3.42382256,2936.8,2935.4,0.00313318]
[1768953064685,3.42382256,2936.6,2935.4,0.00313318]
[1768953064892,3.42382256,2936.4,2935.4,0.00313318]
[1768953065092,3.42627821,2936.4,2934.5,2.154]
[1768953066095,3.42627821,2936.4,2934.5,2.15807925]
[1768953066994,3.59674821,2936.4,2934.5,2.15807925]
[1768953067686,3.59674821,2936.4,2934.5,0.00407925]
[1768953069695,3.42382256,2936.2,2934.5,0.00407925]
[1768953070793,3.42382256,2936.2,2934.5,3.70051481]
[1768953071291,3.42382256,2936.2,2934.6,2.154]
[1768953073890,0.00245565,2936.4,2934.7,3.69643556]
[1768953074091,0.00245565,2936.4,2934.7,3.86700556]
[1768953074396,0.00245565,2936.4,2934.9,3.86698556]
[1768953074792,0.00245565,2936.4,2935.0,3.69643556]
[1768953074994,0.00245565,2936.4,2935.2,3.86696556]
[1768953079100,0.00245565,2936.4,2935.3,2.157]
[1768953082092,0.00245565,2936.4,2935.3,3.49701372]
[1768953082290,0.00245565,2936.4,2935.4,2.156]
[1768953085688,5.56357776,2937.4,2935.6,3.66752372]
[1768953085893,3.64301791,2937.3,2935.6,3.66752372]
[1768953086397,3.47259791,2937.1,2935.7,2.156]
[1768953086793,3.47552432,2937.1,2935.7,2.156]